bitfinex/quotes_BTCUSD_20241011
["timestamp","ask_amount","ask_price","bid_price","bid_amount"]
[1728673870519,0.41122401,63336.0,63333.0,0.21550031]
[1728673871748,0.41122401,63336.0,63333.0,0.20550031]
[1728673873985,0.41122401,63336.0,63330.0,0.2696]
[1728673875848,0.16122401,63335.0,63330.0,0.2696]
[1728673876178,0.157896,63333.0,63330.0,0.2696]
[1728673876382,0.157894,63334.0,63330.0,0.2696]
[1728673876588,0.16122401,63334.0,63330.0,0.2696]
[1728673877667,0.25,63336.0,63333.0,0.31579]
[1728673877875,0.25,63336.0,63335.0,0.37339031]
[1728673878497,0.25,63336.0,63335.0,0.21550031]
[1728673878735,0.250821,63336.0,63335.0,0.21550031]
[1728673879158,0.250821,63336.0,63335.0,0.37339031]
[1728673880044,0.250821,63336.0,63335.0,0.21550031]
[1728673881106,0.250821,63336.0,63331.0,0.21550031]
[1728673881321,0.250821,63336.0,63330.0,0.585403]
[1728673881322,0.250821,63336.0,63335.0,0.21550031]
[1728673881534,0.250821,63336.0,63335.0,0.37339031]
[1728673881762,0.250821,63336.0,63335.0,0.55409031]
[1728673883765,0.245821,63336.0,63335.0,0.71531432]
[1728673884014,0.245821,63336.0,63335.0,0.79931432]
[1728673884015,0.045821,63336.0,63335.0,0.79931432]
[1728673884230,0.045821,63336.0,63335.0,0.96068403]
[1728673884663,0.000821,63348.0,63347.0,0.34296]
[1728673884872,0.0504149,63348.0,63347.0,0.88896454]
[1728673885085,0.000821,63348.0,63347.0,0.21927981]
[1728673885297,0.23875466,63354.0,63353.0,0.157845]
[1728673885479,0.23875466,63354.0,63353.0,0.37334531]
[1728673885732,0.23875466,63361.0,63353.0,0.37334531]
[1728673885733,0.23875466,63361.0,63355.0,0.315677]
[1728673885948,0.23875466,63361.0,63360.0,0.21550031]
[1728673886172,0.23875466,63368.0,63360.0,0.21550031]
[1728673886402,0.23875466,63368.0,63367.0,0.21550031]
[1728673886633,0.23875466,63368.0,63364.0,0.157817]
[1728673886857,0.00082,63374.0,63365.0,0.157815]
[1728673887073,0.00082,63374.0,63364.0,0.22671373]
[1728673887291,0.00082,63374.0,63365.0,0.157815]
[1728673887539,0.00082,63374.0,63364.0,0.06889673]
[1728673887767,0.00082,63374.0,63364.0,0.22671373]
[1728673887945,0.00082,63374.0,63364.0,0.06889673]
[1728673888181,0.00082,63374.0,63365.0,0.07314818]
[1728673888388,0.00082,63374.0,63364.0,0.06889673]
[1728673889008,0.00082,63374.0,63362.0,0.29750031]
[1728673889432,0.00082,63374.0,63363.0,0.157819]
[1728673889840,0.00082,63374.0,63362.0,0.45532231]
[1728673890046,0.00082,63374.0,63362.0,0.29750031]
[1728673890505,0.157796,63373.0,63362.0,0.29750031]
[1728673890634,0.000821,63368.0,63362.0,0.29750031]
[1728673891442,0.000821,63368.0,63363.0,0.10198281]
[1728673891869,0.000821,63368.0,63362.0,0.30319712]
[1728673892572,0.000821,63368.0,63361.0,0.0494358]
[1728673892573,0.39997867,63367.0,63361.0,0.0494358]
[1728673892775,0.157823,63362.0,63361.0,0.0494358]
[1728673892948,0.315641,63364.0,63348.0,0.53121531]
[1728673893168,0.157821,63363.0,63352.0,0.21550031]
[1728673893326,0.315641,63364.0,63352.0,0.21550031]
[1728673893937,0.01,63362.0,63352.0,0.21550031]
[1728673894148,0.167824,63362.0,63352.0,0.21550031]
[1728673894351,0.167824,63362.0,63349.0,0.26054313]
[1728673894557,0.167824,63362.0,63349.0,0.0495676]
[1728673894558,0.16622401,63361.0,63349.0,0.0495676]
[1728673894767,0.157842,63355.0,63349.0,0.0495676]
[1728673894978,0.315664,63359.0,63349.0,0.0495676]
[1728673895295,0.16622401,63361.0,63343.0,0.38023495]
[1728673895296,0.157838,63356.0,63347.0,0.14556695]
[1728673895640,0.157837,63357.0,63348.0,0.02717146]
[1728673895855,0.157838,63356.0,63348.0,0.02717146]
[1728673896058,0.157838,63356.0,63347.0,0.14556695]
[1728673896452,0.16122401,63357.0,63347.0,0.14556695]
[1728673896833,0.39997867,63357.0,63347.0,0.14556695]
[1728673897087,0.39997867,63357.0,63351.0,0.14556695]
[1728673897410,0.39997867,63357.0,63346.0,0.14556695]
[1728673897857,0.157839,63356.0,63346.0,0.14556695]
[1728673898264,0.157841,63355.0,63346.0,0.14556695]
[1728673898508,0.15784,63356.0,63346.0,0.14556695]
[1728673899048,0.40997867,63357.0,63346.0,0.14556695]
[1728673899160,0.40997867,63357.0,63349.0,0.14556695]
[1728673900725,0.157839,63356.0,63349.0,0.14556695]
[1728673901149,0.72565367,63357.0,63356.0,0.157838]
[1728673901150,0.01,63357.0,63356.0,0.157838]
[1728673901330,0.02,63357.0,63356.0,0.157838]
[1728673901531,0.02,63357.0,63356.0,0.2513154]
[1728673901744,0.02,63357.0,63355.0,0.46124595]
[1728673901745,0.02,63357.0,63355.0,0.14556695]
[1728673902808,0.020821,63357.0,63355.0,0.14556695]
[1728673903217,0.020821,63357.0,63355.0,0.157839]
[1728673903426,0.020821,63357.0,63352.0,0.315694]
[1728673903640,0.020821,63357.0,63354.0,0.30340895]
[1728673903873,0.020821,63357.0,63354.0,0.14556695]
[1728673904699,0.23875466,63356.0,63350.0,0.2739]
[1728673905043,0.020821,63357.0,63350.0,0.2739]
[1728673906550,0.020821,63357.0,63350.0,0.238752]
[1728673906803,0.315626,63367.0,63345.0,0.14556695]
[1728673906804,0.000821,63378.0,63351.0,0.14556695]
[1728673907012,0.00649286,63382.0,63351.0,0.14556695]
[1728673907013,0.000821,63382.0,63378.0,0.172683]
[1728673907224,0.000821,63382.0,63378.0,0.248283]
[1728673907445,0.000821,63382.0,63378.0,0.253283]
[1728673907652,0.000821,63382.0,63378.0,0.25643783]
[1728673909394,0.000821,63382.0,63378.0,0.39884995]
[1728673909604,0.000821,63382.0,63378.0,0.253283]
[1728673910485,0.000821,63382.0,63378.0,0.47155622]
[1728673910721,0.000821,63382.0,63378.0,0.46840139]
[1728673910962,0.000821,63384.0,63378.0,0.46840139]
[1728673910963,0.000821,63384.0,63382.0,0.005]
[1728673911208,0.000821,63384.0,63382.0,0.38104603]
[1728673911433,0.000821,63384.0,63382.0,0.37789139]
[1728673911645,0.000821,63398.0,63386.0,0.157763]
[1728673911851,0.000821,63398.0,63396.0,0.157738]
[1728673912399,0.06789981,63403.0,63401.0,0.315451]
[1728673912621,0.06789981,63403.0,63402.0,0.16087711]
[1728673913364,0.00012,63414.0,63406.0,0.315426]
[1728673913621,0.23746258,63427.0,63418.0,0.315366]
[1728673913896,0.23746258,63427.0,63426.0,0.37278239]
[1728673914142,0.000821,63427.0,63426.0,0.37278239]
[1728673914385,0.000821,63438.0,63437.0,0.157636]
[1728673914654,0.000821,63438.0,63437.0,0.37590659]
[1728673914885,0.000821,63438.0,63437.0,0.37275439]
[1728673915375,0.000821,63438.0,63437.0,0.5339784]
[1728673917192,0.010821,63438.0,63437.0,0.5389784]
[1728673918927,0.010821,63438.0,63437.0,0.32386001]
[1728673919144,0.010821,63438.0,63437.0,0.157636]
[1728673919359,0.010821,63438.0,63432.0,0.315295]
[1728673919360,0.010821,63438.0,63430.0,0.21511839]
[1728673919584,0.11799944,63445.0,63440.0,0.001]
[1728673919804,0.11799944,63445.0,63444.0,0.162619]
[1728673920029,0.11799944,63445.0,63444.0,0.428819]
[1728673920453,0.11799944,63445.0,63444.0,0.59018871]
[1728673920673,0.000125,63449.0,63448.0,0.37772739]
[1728673920935,0.000125,63449.0,63448.0,0.5389514]
[1728673922058,0.23707607,63459.0,63455.0,0.37730473]
[1728673922283,0.23707607,63459.0,63455.0,0.53852874]
[1728673922501,0.23707607,63459.0,63455.0,0.21511839]
[1728673922716,0.23707607,63459.0,63449.0,0.157606]
[1728673922934,0.23707607,63459.0,63445.0,0.53034839]
[1728673923146,0.39465907,63459.0,63446.0,0.23664158]
[1728673923354,0.157585,63458.0,63446.0,0.23664158]
[1728673923572,0.23707607,63459.0,63445.0,0.16122401]
[1728673923573,0.23707607,63459.0,63445.0,0.31883901]
[1728673923787,0.23707607,63459.0,63446.0,0.26543889]
[1728673924049,0.23707607,63459.0,63446.0,0.10782489]
[1728673924266,0.157584,63458.0,63446.0,0.10782489]
[1728673924754,0.39466007,63459.0,63446.0,0.10782489]
[1728673925044,0.23707607,63459.0,63447.0,0.00315187]
[1728673925331,0.23707607,63459.0,63444.0,0.079]
[1728673925563,0.23707607,63459.0,63447.0,0.00315187]
[1728673925805,0.000821,63449.0,63444.0,0.079]
[1728673926055,0.15761,63448.0,63443.0,0.0499149]
[1728673926312,0.316037,63449.0,63440.0,0.001]
[1728673926569,0.000821,63449.0,63440.0,0.001]
[1728673926816,0.23664158,63448.0,63440.0,0.001]
[1728673927052,0.157618,63445.0,63440.0,0.001]
[1728673927300,0.23664158,63448.0,63440.0,0.001]
[1728673927301,0.157624,63442.0,63440.0,0.001]
[1728673927557,0.157626,63441.0,63440.0,0.001]
[1728673927832,0.31523,63446.0,63440.0,0.001]
[1728673927833,0.002,63446.0,63440.0,0.001]
[1728673928057,0.157624,63442.0,63440.0,0.001]
[1728673928307,0.000821,63449.0,63448.0,0.15856754]
[1728673928554,0.000821,63449.0,63448.0,0.63398208]
[1728673928820,0.000821,63449.0,63448.0,0.63083093]
[1728673929549,0.000821,63449.0,63448.0,0.62623559]
[1728673929767,0.000821,63449.0,63448.0,0.63083093]
[1728673929991,0.000821,63449.0,63448.0,0.5303146]
[1728673930429,0.000821,63449.0,63444.0,0.585537]
[1728673930430,0.000821,63449.0,63444.0,0.0819]
[1728673930639,0.000821,63449.0,63445.0,0.23979341]
[1728673930854,0.000821,63449.0,63448.0,0.37272739]
[1728673931071,0.000821,63449.0,63448.0,0.5339514]
[1728673931286,0.000821,63449.0,63443.0,0.315241]
[1728673931507,0.000821,63449.0,63444.0,0.00315197]
[1728673931740,0.000821,63449.0,63441.0,0.37274439]
[1728673931959,0.000821,63449.0,63442.0,0.16077497]
[1728673932181,0.000821,63449.0,63440.0,0.001]
[1728673932182,0.23664158,63448.0,63440.0,0.001]
[1728673932408,0.315223,63447.0,63440.0,0.001]
[1728673932619,0.157619,63444.0,63440.0,0.001]
[1728673933067,0.15762,63444.0,63440.0,0.001]
[1728673933286,0.39426658,63442.0,63440.0,0.001]
[1728673933513,0.15803066,63441.0,63440.0,0.001]
[1728673934162,0.16003066,63441.0,63440.0,0.001]
[1728673934419,0.34425467,63441.0,63440.0,0.001]
[1728673934657,0.44425467,63441.0,63440.0,0.001]
[1728673935125,0.68089625,63441.0,63440.0,0.001]
[1728673935350,0.60562438,63441.0,63440.0,0.001]
[1728673935786,0.60562438,63441.0,63413.0,0.1]
[1728673935787,0.00040466,63424.0,63413.0,0.1]
[1728673936006,0.00040466,63422.0,63413.0,0.1]
[1728673936282,0.157693,63414.0,63413.0,0.1]
[1728673936471,0.15809766,63414.0,63413.0,0.1]
[1728673936739,0.28109766,63414.0,63413.0,0.1]
[1728673936959,0.28309766,63414.0,63413.0,0.1]
[1728673937386,0.44432167,63414.0,63413.0,0.10164]
[1728673938280,0.00040466,63414.0,63413.0,0.111804]
[1728673938493,0.16809766,63414.0,63413.0,0.10164]
[1728673938704,0.01040466,63414.0,63413.0,0.10164]
[1728673938915,0.16809766,63414.0,63413.0,0.10164]
[1728673939125,0.01040466,63414.0,63413.0,0.10164]
[1728673939346,0.16809766,63414.0,63413.0,0.10164]
[1728673940215,0.01040466,63414.0,63413.0,0.10164]
[1728673940450,0.16809766,63414.0,63413.0,0.10164]
[1728673940887,0.01040466,63414.0,63413.0,0.10164]
[1728673941128,0.01,63414.0,63413.0,0.111804]
[1728673941370,0.01,63414.0,63413.0,0.27265354]
[1728673942275,0.01,63414.0,63413.0,0.11495754]
[1728673942540,0.01,63414.0,63413.0,0.10164]
[1728673942774,0.16809766,63414.0,63413.0,0.10164]
[1728673943433,0.17009766,63414.0,63413.0,0.10164]
[1728673943942,0.35232167,63414.0,63413.0,0.10164]
[1728673944166,0.35432167,63414.0,63413.0,0.10164]
[1728673944849,0.35232167,63414.0,63413.0,0.10164]
[1728673945065,0.35432167,63414.0,63413.0,0.10164]
[1728673945497,0.35232167,63414.0,63413.0,0.10164]
[1728673946384,0.35432167,63414.0,63413.0,0.10164]
[1728673947058,0.35232167,63414.0,63413.0,0.10164]
[1728673947522,0.78563939,63414.0,63413.0,0.10164]
[1728673947787,0.45432167,63414.0,63413.0,0.10164]
[1728673948009,0.45232167,63414.0,63413.0,0.10164]
[1728673948672,0.42932167,63414.0,63413.0,0.10164]
[1728673951099,0.43132167,63414.0,63413.0,0.10164]
[1728673951789,0.45432167,63414.0,63413.0,0.10164]
[1728673952003,0.61569138,63414.0,63413.0,0.10164]
[1728673952453,0.45432167,63414.0,63413.0,0.10164]
[1728673953702,0.45932167,63414.0,63413.0,0.10164]
[1728673954367,0.54202167,63414.0,63413.0,0.10164]
[1728673954809,0.72792167,63414.0,63413.0,0.06567517]
[1728673955021,1.37507067,63414.0,63413.0,0.06567517]
[1728673955233,1.46616638,63414.0,63413.0,0.06567517]
[1728673955680,0.00040466,63384.0,63383.0,0.00164]
[1728673955890,0.31939667,63384.0,63383.0,0.00164]
[1728673956111,0.34239667,63384.0,63383.0,0.00560139]
[1728673956316,0.44239667,63384.0,63383.0,0.00164]
[1728673956520,0.50540776,63384.0,63383.0,0.00164]
[1728673956731,0.44239667,63384.0,63383.0,0.00164]
[1728673957575,0.44439667,63384.0,63383.0,0.00164]
[1728673958265,0.61950738,63377.0,63376.0,0.00164]
[1728673958482,0.93934903,63377.0,63376.0,0.00164]
[1728673958711,0.44441367,63377.0,63376.0,0.00164]
[1728673958930,0.44741367,63377.0,63376.0,0.00164]
[1728673959164,0.78273139,63377.0,63376.0,0.00164]
[1728673959613,1.01937297,63377.0,63376.0,0.00164]
[1728673959826,1.01937297,63377.0,63348.0,0.001642]
[1728673959827,0.28125466,63351.0,63348.0,0.001642]
[1728673960040,0.44247867,63351.0,63348.0,0.001642]
[1728673960479,0.44447867,63351.0,63348.0,0.001642]
[1728673960774,0.44247867,63351.0,63348.0,0.001642]
[1728673961470,0.44447867,63351.0,63348.0,0.001642]
[1728673961677,0.44247867,63351.0,63348.0,0.001642]
[1728673962087,0.44447867,63351.0,63348.0,0.001642]
[1728673962307,0.44247867,63351.0,63348.0,0.001642]
[1728673962974,0.315697,63352.0,63348.0,0.001642]
[1728673962975,0.157848,63352.0,63348.0,0.001642]
[1728673963185,0.00040466,63353.0,63348.0,0.001642]
[1728673963398,0.31609766,63353.0,63348.0,0.001642]
[1728673963607,0.157849,63352.0,63348.0,0.001642]
[1728673964056,0.157848,63352.0,63348.0,0.001642]
[1728673964273,0.15785,63351.0,63348.0,0.001642]
[1728673964490,0.15785,63351.0,63350.0,0.001566]
[1728673965532,0.15825466,63351.0,63350.0,0.001566]
[1728673966613,0.15785,63351.0,63350.0,0.001566]
[1728673966815,0.15825466,63351.0,63350.0,0.001566]
[1728673967020,0.15825266,63352.0,63350.0,0.001566]
[1728673967296,0.00040466,63352.0,63350.0,0.001566]
[1728673967513,0.15785,63351.0,63350.0,0.001566]
[1728673967929,0.15825466,63351.0,63350.0,0.001566]
[1728673971145,0.00040466,63351.0,63350.0,0.001566]
[1728673971367,0.0495991,63363.0,63350.0,0.00472278]
[1728673971368,0.00040466,63362.0,63350.0,0.00472278]
[1728673971589,0.00040466,63362.0,63360.0,0.33409343]
[1728673971590,0.23664158,63362.0,63360.0,0.33409343]
[1728673971795,0.23664158,63362.0,63361.0,0.233225]
[1728673972000,0.00040466,63373.0,63361.0,0.23662401]
[1728673972001,0.0498929,63373.0,63361.0,0.23662401]
[1728673972204,0.0498929,63373.0,63363.0,0.157819]
[1728673972413,0.0498929,63373.0,63362.0,0.15782]
[1728673972634,0.0498929,63373.0,63363.0,0.315637]
[1728673972853,0.0498929,63373.0,63361.0,0.55227401]
[1728673973079,0.2076889,63373.0,63361.0,0.23562401]
[1728673973305,0.157799,63372.0,63361.0,0.0744]
[1728673973558,0.0498929,63373.0,63361.0,0.0744]
[1728673973777,0.315597,63372.0,63361.0,0.0744]
[1728673973989,0.05029756,63373.0,63361.0,0.0744]
[1728673974203,0.05029756,63373.0,63361.0,0.232225]
[1728673974412,0.157806,63369.0,63362.0,0.00353741]
[1728673974901,0.157806,63369.0,63361.0,0.0744]
[1728673975124,0.315604,63371.0,63361.0,0.0744]
[1728673975335,0.3654859,63373.0,63362.0,0.00428477]
[1728673975566,0.39444558,63370.0,63362.0,0.00428477]
[1728673975784,0.36589056,63373.0,63362.0,0.00428477]
[1728673975785,0.23664158,63391.0,63372.0,0.1974]
[1728673976018,0.23664158,63384.0,63383.0,0.157771]
[1728673976228,0.23664158,63384.0,63383.0,0.236771]
[1728673976621,0.23664158,63391.0,63386.0,0.157762]
[1728673976899,0.23664158,63391.0,63387.0,0.157759]
[1728673977349,0.23664158,63391.0,63386.0,0.315526]
[1728673977578,0.23664158,63398.0,63386.0,0.315526]
[1728673977579,0.23664158,63398.0,63391.0,0.1909]
[1728673977797,0.23664158,63398.0,63392.0,0.0031545]
[1728673978067,0.23664158,63398.0,63397.0,0.33409343]
[1728673978536,0.00060466,63404.0,63397.0,0.33409343]
[1728673978958,0.00060466,63404.0,63398.0,0.00410553]
[1728673979176,0.39435958,63405.0,63398.0,0.00410553]
[1728673979177,0.15833566,63399.0,63398.0,0.00410553]
[1728673979393,0.15833566,63399.0,63385.0,0.0495608]
[1728673979394,0.00060466,63396.0,63385.0,0.0495608]
[1728673979624,0.157752,63391.0,63385.0,0.0495608]
[1728673979857,0.315498,63392.0,63385.0,0.0495608]
[1728673979858,0.157754,63390.0,63385.0,0.0495608]
[1728673980082,0.157754,63390.0,63383.0,0.079]
[1728673980293,0.157754,63390.0,63380.0,0.1913]
[1728673980294,0.315507,63390.0,63380.0,0.1913]
[1728673980516,0.315507,63390.0,63377.0,0.38365263]
[1728673980517,0.00060466,63384.0,63377.0,0.0495592]
[1728673981001,0.00060466,63384.0,63378.0,0.00612287]
[1728673981416,0.00060466,63384.0,63377.0,0.0495592]
[1728673981624,0.157771,63383.0,63378.0,0.00612287]
[1728673981849,0.23724624,63384.0,63378.0,0.00612287]
[1728673982062,0.39501524,63384.0,63373.0,0.0765]
[1728673982273,0.157776,63381.0,63371.0,0.38404153]
[1728673982536,0.31615766,63381.0,63374.0,0.00616425]
[1728673982718,0.23664158,63384.0,63371.0,0.0499481]
[1728673982719,0.00060466,63378.0,63371.0,0.0499481]
[1728673983160,0.15779,63376.0,63364.0,0.08]
[1728673983373,0.315593,63373.0,63364.0,0.1298242]
[1728673983579,0.157796,63373.0,63364.0,0.19772113]
[1728673983782,0.157799,63372.0,63364.0,0.19772113]
[1728673983978,0.00060466,63374.0,63364.0,0.19772113]
[1728673984214,0.23664158,63370.0,63364.0,0.0498242]
[1728673984430,0.00060466,63372.0,63364.0,0.0498242]
[1728673984431,0.157805,63369.0,63364.0,0.0498242]
[1728673984647,0.00060466,63372.0,63363.0,0.02365168]
[1728673985558,0.23664158,63377.0,63363.0,0.02365168]
[1728673985559,0.157804,63370.0,63363.0,0.02365168]
[1728673985776,0.00060466,63371.0,63359.0,0.1914]
[1728673985996,0.39444558,63370.0,63359.0,0.1914]
[1728673986208,0.157806,63369.0,63360.0,0.01035386]
[1728673986456,0.157808,63368.0,63360.0,0.01035386]
[1728673986683,0.23724624,63370.0,63360.0,0.01035386]
[1728673987117,0.157813,63366.0,63360.0,0.01035386]
[1728673987339,0.15781,63367.0,63360.0,0.01035386]
[1728673987962,0.00060466,63369.0,63360.0,0.01035386]
[1728673988176,0.31621566,63369.0,63360.0,0.01035386]
[1728673988380,0.15841566,63367.0,63360.0,0.01035386]
[1728673988583,0.00060466,63367.0,63360.0,0.01035386]
[1728673989827,0.15842966,63361.0,63360.0,0.01035386]
[1728673990301,0.00060466,63357.0,63350.0,0.001566]
[1728673990728,0.00060466,63357.0,63351.0,0.00433957]
[1728673990936,0.23664158,63355.0,63351.0,0.01049187]
[1728673991143,0.00060466,63356.0,63351.0,0.01049187]
[1728673991356,0.23664158,63355.0,63351.0,0.01049187]
[1728673991571,0.00060466,63355.0,63350.0,0.001566]
[1728673991782,0.00060466,63354.0,63352.0,0.00614194]
[1728673991993,0.00060466,63354.0,63351.0,0.0061523]
[1728673992232,0.16382867,63354.0,63353.0,0.00613159]
[1728673992443,0.00060466,63351.0,63350.0,0.001566]
[1728673992692,0.00260466,63351.0,63350.0,0.001566]
[1728673992899,0.00060466,63351.0,63350.0,0.001566]
[1728673993856,0.00060466,63353.0,63350.0,0.001566]
[1728673994136,0.00060466,63351.0,63350.0,0.001566]
[1728673994387,0.43765312,63351.0,63350.0,0.001566]
[1728673994644,0.34467867,63351.0,63350.0,0.001566]
[1728673994904,0.6601978,63351.0,63350.0,0.001566]
[1728673995911,0.6651978,63351.0,63350.0,0.001566]
[1728673996909,0.44967867,63351.0,63350.0,0.001566]
[1728673997144,0.61090505,63351.0,63350.0,0.001566]
[1728673998655,0.44967867,63351.0,63350.0,0.001566]
[1728674001655,0.6651978,63351.0,63350.0,0.001566]
[1728674002946,1.11735851,63351.0,63350.0,0.001566]
[1728674003164,0.88071693,63351.0,63350.0,0.001566]
[1728674003801,0.6651978,63351.0,63350.0,0.001566]
[1728674004013,1.54008664,63351.0,63350.0,0.001566]
[1728674004230,1.54008664,63351.0,63349.0,0.00164]
[1728674004231,0.00760466,63350.0,63349.0,0.00164]
[1728674004440,0.00760466,63350.0,63320.0,0.0497961]
[1728674004441,0.50402379,63331.0,63320.0,0.0497961]
[1728674004643,0.77880768,63331.0,63320.0,0.0497961]
[1728674004866,0.77880768,63331.0,63312.0,0.001644]
[1728674005083,0.77880768,63331.0,63313.0,5.59526174]
[1728674005375,0.6652478,63331.0,63313.0,5.59526174]
[1728674006008,0.28482867,63331.0,63313.0,5.81078087]
[1728674006427,0.44472867,63331.0,63313.0,5.59526174]
[1728674006635,0.28482867,63331.0,63313.0,5.59526174]
[1728674007061,0.44472867,63331.0,63313.0,5.59526174]
[1728674007475,0.60599005,63331.0,63313.0,5.59526174]
[1728674007685,0.61099005,63331.0,63313.0,5.59526174]
[1728674010615,0.69269005,63331.0,63313.0,5.59526174]
[1728674011024,0.53142867,63331.0,63313.0,5.59526174]
[1728674014358,1.29450767,63331.0,63313.0,5.59526174]
[1728674014963,1.25268067,63331.0,63313.0,5.59526174]
[1728674015608,1.4681998,63331.0,63313.0,5.59526174]
[1728674015808,1.25268067,63331.0,63313.0,5.59526174]
[1728674016026,2.13456951,63331.0,63313.0,5.59526174]
[1728674016228,0.50406379,63315.0,63313.0,5.59526174]
[1728674016434,0.6652878,63315.0,63313.0,5.59526174]
[1728674016612,0.6652878,63315.0,63314.0,0.0081776]
[1728674016812,0.6652878,63315.0,63314.0,0.001642]
[1728674017013,0.76503317,63315.0,63314.0,0.0081776]
[1728674017239,0.76503317,63315.0,63314.0,0.001642]
[1728674017733,0.76503317,63315.0,63314.0,0.0081776]
[1728674018274,0.6652878,63315.0,63314.0,0.0081776]
[1728674018479,0.44976867,63315.0,63314.0,0.0081776]
[1728674024861,0.16554666,63314.0,63313.0,5.35436374]
[1728674025086,0.90193138,63314.0,63313.0,5.35436374]
[1728674025319,0.82665951,63314.0,63313.0,5.35436374]
[1728674025544,0.90215951,63314.0,63313.0,5.3049762]
[1728674026381,0.90215951,63314.0,63313.0,5.28137534]
[1728674028506,0.90215951,63314.0,63313.0,5.25547212]
[1728674028719,1.67928851,63314.0,63313.0,5.25547212]
[1728674029164,0.42677067,63314.0,63313.0,5.25547212]
[1728674029378,0.32477067,63314.0,63313.0,5.25547212]
[1728674031168,0.44777067,63314.0,63313.0,5.25547212]
[1728674031403,0.41977067,63314.0,63313.0,5.25547212]
[1728674031622,0.31977067,63314.0,63313.0,5.25547212]
[1728674032038,0.38383594,63314.0,63313.0,5.25547212]
[1728674032248,0.31977067,63314.0,63313.0,5.25547212]
[1728674032960,0.41977067,63314.0,63313.0,5.25547212]
[1728674034104,0.44277067,63314.0,63313.0,5.25547212]
[1728674034783,0.6652898,63314.0,63313.0,5.25547212]
[1728674034996,0.44277067,63314.0,63313.0,5.25547212]
[1728674035221,0.18482867,63314.0,63313.0,5.25547212]
[1728674035436,0.18482867,63314.0,63313.0,5.27001357]
[1728674035710,0.34277067,63314.0,63313.0,5.27001357]
[1728674036573,0.44277067,63314.0,63313.0,5.27001357]
[1728674036788,0.44277067,63314.0,63313.0,5.25547212]
[1728674037263,0.10060466,63314.0,63313.0,5.43567212]
[1728674037500,0.10060466,63314.0,63313.0,5.61075156]
[1728674037731,0.15854666,63314.0,63313.0,5.44938185]
[1728674037965,0.10060466,63314.0,63313.0,5.44938185]
[1728674038216,0.005,63329.0,63313.0,5.74520098]
[1728674038457,0.23664158,63342.0,63313.0,5.74520098]
[1728674038458,0.23664158,63321.0,63313.0,5.73065225]
[1728674038673,0.16122401,63326.0,63314.0,0.1846432]
[1728674038920,0.0002,63321.0,63315.0,0.02327349]
[1728674039167,0.0664608,63327.0,63325.0,0.275]
[1728674039168,0.30310238,63327.0,63325.0,0.275]
[1728674039654,0.0664608,63327.0,63325.0,0.275]
[1728674042246,0.0672838,63327.0,63325.0,0.275]
[1728674042960,0.000823,63327.0,63325.0,0.275]
[1728674044341,0.000823,63327.0,63326.0,0.0275]
[1728674044565,0.000823,63327.0,63325.0,0.275]
[1728674045642,0.000823,63327.0,63325.0,0.27494]
[1728674047647,0.39786559,63326.0,63325.0,0.27494]
[1728674047865,0.39786559,63326.0,63312.0,0.00756539]
[1728674047866,0.34213801,63326.0,63316.0,0.1886]
[1728674048077,0.18422401,63326.0,63316.0,0.1886]
[1728674048732,0.18422401,63326.0,63317.0,0.0824]
[1728674050247,0.34213701,63326.0,63317.0,0.0824]
[1728674050466,0.18422401,63326.0,63317.0,0.0824]
[1728674053776,0.18422401,63326.0,63317.0,0.084046]
[1728674054855,0.22809547,63326.0,63317.0,0.084046]
[1728674055513,0.18422401,63326.0,63317.0,0.084046]
[1728674056352,0.14571103,63324.0,63317.0,0.084046]
[1728674058127,0.18422401,63326.0,63317.0,0.084046]
[1728674059421,0.14571103,63324.0,63317.0,0.084046]
[1728674060653,0.18422401,63326.0,63317.0,0.084046]
[1728674060897,0.14571103,63325.0,63317.0,0.084046]
[1728674062697,0.14571103,63325.0,63317.0,0.24541571]
[1728674062901,0.18422401,63326.0,63317.0,0.24541571]
[1728674064378,0.18422401,63326.0,63317.0,0.241981]
[1728674064583,0.18422401,63326.0,63317.0,0.084046]
[1728674065866,0.18504701,63326.0,63317.0,0.084046]
[1728674067439,0.14571103,63324.0,63317.0,0.084046]
[1728674068077,0.23664158,63318.0,63317.0,0.001646]
[1728674068305,0.34215601,63318.0,63317.0,0.001646]
[1728674068545,0.48786704,63318.0,63317.0,0.001646]
[1728674069632,0.34215601,63318.0,63317.0,0.001646]
[1728674070059,0.48786704,63318.0,63317.0,0.001646]
[1728674070285,0.35215601,63318.0,63317.0,0.003646]
[1728674070509,0.49786704,63318.0,63317.0,0.002646]
[1728674070724,0.50686704,63318.0,63317.0,0.003646]
[1728674079607,0.60686704,63318.0,63317.0,0.003646]
[1728674084088,0.18022401,63318.0,63317.0,0.003646]
[1728674084308,0.019,63318.0,63317.0,0.38579203]
[1728674084520,0.019,63318.0,63317.0,0.24351571]
[1728674084749,0.019,63318.0,63317.0,0.082146]
[1728674087009,0.019,63318.0,63317.0,0.003646]
[1728674087193,0.18022401,63318.0,63317.0,0.003646]
[1728674090019,0.18022401,63318.0,63317.0,0.00348658]
[1728674093166,0.33815601,63318.0,63317.0,0.00348658]
[1728674093392,0.36115601,63318.0,63317.0,0.00348658]
[1728674096751,0.46815601,63318.0,63317.0,0.00348658]
[1728674097596,0.44915601,63318.0,63317.0,0.00148658]
[1728674097803,0.46315601,63318.0,63317.0,0.00248658]
[1728674098268,0.44915601,63318.0,63317.0,0.00148658]
[1728674098699,0.46315601,63318.0,63317.0,0.00248658]
[1728674098837,0.78423675,63318.0,63317.0,0.00348658]
[1728674099064,0.47515601,63318.0,63317.0,0.00248658]
[1728674100040,0.62986704,63318.0,63317.0,0.00348658]
[1728674100450,0.63486704,63318.0,63317.0,0.00348658]
[1728674101834,0.48915601,63318.0,63317.0,0.00348658]
[1728674103003,0.49115601,63318.0,63317.0,0.00348658]
[1728674103218,0.64959891,63318.0,63317.0,0.00048658]
[1728674103630,0.185942,63314.0,63313.0,5.25463312]
[1728674103824,0.76119003,63314.0,63313.0,5.25463312]
[1728674104907,0.77529003,63314.0,63313.0,5.25463312]
[1728674105120,0.627579,63314.0,63313.0,5.25463312]
[1728674105328,0.613579,63314.0,63313.0,5.25463312]
[1728674105534,0.629579,63314.0,63313.0,5.25463312]
[1728674105973,0.643579,63314.0,63313.0,5.25463312]
[1728674106375,0.6902754,63314.0,63313.0,5.25463312]
[1728674106585,0.7042754,63314.0,63313.0,5.25463312]